Cogmind - Beta 14 @@@ ROGUE MODE // 2024.08.13 @ 18:36:56 Player: noob Result: Destroyed by G-34 Mercenary with Small Laser Performance ------------- Evolutions (1) 500 Regions Visited (3) 600 Robots Destroyed (75) 375 Value Destroyed (2272) 2272 Prototype IDs (5) 100 Alien Tech Used (0) 0 Bonus (87) 87 TOTAL SCORE: 3934 Bonus ------- High Alert Combat Kills 22 Follower Combat Kills 95 Friendly Fire -30 Cogmind --------- Core Integrity 0/400 Matter 230/300 Energy 250/280 System Corruption 4% Temperature Cool (12) Movement Walking (190) Ox1 Location -9/Storage Parts ------- > --- POWER (1) -------- Heavy Ion Engine > --- PROPULSION (3) --- Aluminum Leg Aluminum Leg Improved Aluminum Leg > --- UTILITY (3) ------ Medium Storage Unit Heavy Armor Plating > --- WEAPON (2) ------- Rocket Launcher Mini Grenade Launcher > --- INVENTORY (10) --- Light Nuclear Core Light Armor Plating Heavy Armor Plating Trap Extractor (0/4) Improved EM Shotgun Ion Cannon Ion Cannon Heavy Assault Rifle Heavy Assault Rifle Peak State ------------ > --- POWER ------------ Light Nuclear Core > --- PROPULSION ------- Aluminum Leg Aluminum Leg Improved Aluminum Leg > --- UTILITY ---------- Medium Storage Unit Heavy Armor Plating > --- WEAPON ----------- Ion Cannon Ion Cannon > --- INVENTORY -------- Aluminum Leg Light Armor Plating Heavy Armor Plating Improved EM Shotgun Beam Rifle Heavy Assault Rifle Heavy Assault Rifle Rocket Launcher Mini Grenade Launcher [Rating: 22] Favorites ----------- Power Light Nuclear Core Engine Ion Engine Power Core Light Nuclear Core Propulsion Aluminum Leg Treads Light Treads Leg Aluminum Leg Utility Medium Storage Unit Device Sensor Array Storage Medium Storage Unit Processor Visual Processing Unit Protection Heavy Armor Plating Weapon Ion Cannon Energy Gun EM Pulse Gun Energy Cannon Ion Cannon Ballistic Gun Light Assault Rifle Ballistic Cannon Light Cannon Launcher Grenade Launcher Special Weapon Mining Laser Build | -11 -10 -9 -9 ------- Run | Yrd Mat Mat Sto Slots Evolved 2 | . . 2 . Power . | . . . . Propulsion 1 | . . 1 . Utility 1 | . . 1 . Weapon . | . . . . Parts Attached 81 | 5 19 34 23 Power 9 | . 3 4 2 Engine 6 | . 3 2 1 Core 3 | . . 2 1 Reactor . | . . . . Propulsion 24 | 2 4 10 8 Treads 3 | 2 . . 1 Leg 21 | . 4 10 7 Wheel . | . . . . Hover . | . . . . Flight . | . . . . Utility 19 | 1 5 9 4 Device 4 | . 2 1 1 Storage 3 | 1 2 . . Processor 1 | . 1 . . Hackware . | . . . . Protection 11 | . . 8 3 Artifact . | . . . . Weapon 29 | 2 7 11 9 Energy Gun 6 | . 2 2 2 Energy Cannon 4 | . . 2 2 Ballistic Gun 8 | 2 . 3 3 Ballistic Cannon 2 | . . 2 . Launcher 7 | . 3 2 2 Special Weapon 2 | . 2 . . Impact Weapon . | . . . . Slashing Weapon . | . . . . Piercing Weapon . | . . . . Special Melee Weapon . | . . . . Unidentified Prototypes 1 | . . . 1 Corrupted Parts 1 | . . . 1 System Corruption 1 | . . . 1 Parts Lost 16 | . 9 5 2 Power 2 | . 2 . . Propulsion 3 | . 2 1 . Utility 5 | . 1 3 1 Weapon 6 | . 4 1 1 Highest Loss Streak 5 | . 5 2 2 To Critical Strikes . | . . . . Average Slot Usage (%) 90 | . 87 96 87 Engine 6 | . 13 5 . Core 5 | . . 5 10 Treads 2 | . 7 . . Leg 28 | . 20 31 32 Device 4 | . 8 4 . Storage 12 | . 14 11 11 Processor 1 | . 3 . . Protection 8 | . . 16 10 Energy Gun 1 | . 2 3 . Energy Cannon 9 | . . 6 20 Ballistic Gun 8 | . 16 8 1 Peak Build Rating 22 | 5 9 21 22 Average Rating 14 | 3 6 14 21 On Entrance 8 | . 5 8 21 Naked Turns . | . . . . Heaviest Build 50 | 7 50 42 45 Greatest Support 40 | 40 40 30 33 Greatest Overweight (x) 12 | . 2 1 12 Average Overweight (x) . | . 1 . 1 Largest Inventory Capacity 20 | 8 20 10 10 Average Capacity 11 | 6 15 10 10 Most Carried 14 | 7 14 10 10 Average Carried 9 | 4 7 9 9 Final Capacity 10 | 8 10 10 10 Final Carried 10 | 7 10 10 10 Class Distribution -------------------- 51% | Scavenger-Mutant 48% | Mutant Dominant Class ---------------- Mutant | -10/Materials Scavenger-Mutant | -9/Materials Mutant | -9/Storage Resources | -11 -10 -9 -9 ----------- Run | Yrd Mat Mat Sto Matter Collected 1657 | 144 352 681 480 Remotely . | . . . . Salvage Created 2654 | . 466 1116 1072 Parts 185 | . 51 70 64 Haulers Intercepted . | . . . . Recyclers Shooed 1 | . 1 . . Parts Field Recycled . | . . . . Retrieved Matter . | . . . . Parts Self-Destructed . | . . . . Prevented . | . . . . Kills | -11 -10 -9 -9 ------- Run | Yrd Mat Mat Sto Combat Hostiles Destroyed 61 | . 14 26 21 Melee 1 | . 1 . . Guns 23 | . 10 11 2 Cannons 32 | . 2 12 18 AOE 5 | . 1 3 1 Classes Destroyed 10 | . 6 3 1 Worker 3 | . 1 2 . Builder 3 | . 3 . . Tunneler 1 | . 1 . . Recycler 1 | . . 1 . Watcher 6 | . 3 1 2 Swarmer 10 | . 6 4 . Grunt 34 | . 8 15 11 Brawler 1 | . . 1 . Duelist 1 | . . . 1 Sentry 15 | . . 6 9 Best Kill Streak 5 | . 5 4 3 Combat Bots Only 5 | . 5 3 2 Max Kills in Single Turn 4 | . 4 2 1 Gunslinging . | . . . . Exploded 2 | . 1 2 1 Melee 1 | . 1 . . Uniques/NPCs Destroyed . | . . . . Combat | -11 -10 -9 -9 -------- Run | Yrd Mat Mat Sto Hostile Shots Fired 428 | . 140 162 126 Missed 112 | . 33 43 36 Damage Taken 3967 | . 1098 1423 1446 Core 548 | . 140 176 232 Absorbed by Shields . | . . . . Ignored by Resistances 72 | . . 72 . Regen/Repaired (Parts) 212 | . . . 212 Core Remaining (%) 72 | 100 44 . . Volleys Fired 228 | 1 74 97 56 Largest 2 | 2 2 2 2 Hottest 200 | 40 200 120 120 Shots Fired 426 | 2 132 190 102 Gun 255 | 2 122 113 18 Cannon 156 | . . 73 83 Launcher 8 | . 3 4 1 Special 7 | . 7 . . Kinetic 243 | 2 122 105 14 Thermal 139 | . 7 49 83 Explosive 8 | . 3 4 1 Electromagnetic 36 | . . 32 4 Robot Hit Streak 20 | . 6 20 7 Robot Miss Streak 6 | 2 4 6 4 Penetration Max . | . . . . Secondary Targets 3 | . 3 . . Max Gunslinging Chain 1 | . 1 . . Shots Hit Robots 250 | . 71 119 60 Core Hits 119 | . 47 41 31 Critical Kills . | . . . . Critical Parts Destroyed 1 | . . 1 . Critical Strikes 3 | . . 3 . Destroy 1 | . . 1 . Blast 1 | . . 1 . Corrupt 1 | . . 1 . Melee Attacks . | . . . . Impact . | . . . . Slashing . | . . . . Piercing . | . . . . Sneak Attacks . | . . . . Combat Hostiles . | . . . . Follow-up Attacks . | . . . . Damage Inflicted 4793 | . 911 2296 1586 Guns 1783 | . 543 1040 200 Cannons 2114 | . . 972 1142 Explosions 752 | . 251 284 217 Melee . | . . . . Ramming 48 | . 21 . 27 Kinetic 1786 | . 543 1112 131 Thermal 1911 | . 96 673 1142 Explosive 752 | . 251 284 217 Electromagnetic 296 | . . 227 69 Impact . | . . . . Slashing . | . . . . Piercing . | . . . . Highest Corruption 4 | . . 3 4 Average Corruption 3 | . . 2 3 Corruption Purged . | . . . . Corruption Blocked . | . . . . Effects 43 | . . 11 32 Message Errors 9 | . . 1 8 Matter Fused 10 | . . 3 7 Heat Flow Errors 6 | . . 2 4 Energy Discharges 5 | . . 1 4 Parts Rejected 2 | . . 2 . Data Loss (minor) 5 | . . 2 3 Data Loss (major) 3 | . . . 3 Misfires 1 | . . . 1 Alerts 2 | . . . 2 Overload Shots . | . . . . Overflow Damage 26 | . . 26 . Projectiles 26 | . . 26 . Explosions . | . . . . Melee . | . . . . Knockbacks 6 | . . 6 . Impact . | . . . . Kinetic 6 | . . 6 . Secondary . | . . . . Self-Inflicted Damage 60 | . 13 . 47 Shots 4 | . 3 . 1 Rammed 2 | . 2 . . Targets Rammed 19 | . 15 . 4 Kicked 17 | . 13 . 4 Crushed . | . . . . Highest Temperature 644 | . 172 491 644 Average Temperature 123 | . 45 87 176 Received Heat Transfer 1635 | . 351 645 639 Effects 25 | . . 3 22 Shutdowns 8 | . . 1 7 Energy Bleed 2 | . . . 2 Interference 4 | . . . 4 Matter Decay 2 | . . . 2 Short Circuit 3 | . . . 3 Damage (minor) 2 | . . 1 1 Damage (major) 2 | . . 1 1 Damage (core) 2 | . . . 2 Siege Activations . | . . . . Robots Corrupted . | . . . . Combat Hostiles . | . . . . Parts Fried 1 | . . 1 . Impact Corruptions . | . . . . Robots Melted . | . . . . Combat Hostiles . | . . . . Parts Melted 4 | . . 1 3 Heat Transferred 3076 | . 200 1073 1803 Parts Sabotaged . | . . . . Parts Stolen . | . . . . Parts Stripped . | . . . . Power Chain Reactions . | . . . . Alert | -11 -10 -9 -9 ------- Run | Yrd Mat Mat Sto Peak Influence 404 | . 189 311 404 Initial 121 | . . . 121 Average 146 | . 36 159 253 Maximum Alert Level 2 | . . 1 2 Low Security (%) 63 | 100 100 62 25 Level 1 34 | . . 37 69 Level 2 1 | . . . 5 Level 3 . | . . . . Level 4 . | . . . . Level 5 . | . . . . High Security . | . . . . Max Security . | . . . . Squads Dispatched 12 | . 2 4 6 Investigation 8 | . 1 4 3 Extermination . | . . . . Reinforcement 2 | . 1 . 1 Assault 2 | . . . 2 Garrison . | . . . . Intercept . | . . . . Searches Triggered . | . . . . Construction Impeded 1 | . . . 1 Haulers Reinforced . | . . . . Active Scanning Responses . | . . . . Cargo Convoy Interrupts . | . . . . Stealth | -11 -10 -9 -9 --------- Run | Yrd Mat Mat Sto Distress Signals 8 | . 3 3 2 Communications Jammed . | . . . . Distress Signals . | . . . . Times Spotted 108 | . 28 44 36 Peak Tracking Total 6 | . 5 4 6 Tactical Retreats 4 | . . 2 2 Traps | -11 -10 -9 -9 ------- Run | Yrd Mat Mat Sto Traps Triggered 7 | . 1 3 3 Indirectly . | . . . . Trap Hack Attempts . | . . . . Triggered . | . . . . Disarmed . | . . . . Reprogrammed . | . . . . Reused . | . . . . Traps Extracted . | . . . . Installed . | . . . . Triggered . | . . . . Machines | -11 -10 -9 -9 ---------- Run | Yrd Mat Mat Sto Machines Disabled 4 | . . 3 1 Max in Single Turn 1 | . . 1 1 Garrison Access 1 | . . . 1 Machines Repaired . | . . . . Machines Dismantled . | . . . . Machines Sabotaged . | . . . . Overloaded Fab Kills . | . . . . Hacking | -11 -10 -9 -9 --------- Run | Yrd Mat Mat Sto Machines Accessed 17 | . 4 7 6 Terminals 10 | . 3 3 4 Fabricators . | . . . . Repair Stations 1 | . . . 1 Recycling Units 3 | . 1 2 . Scanalyzers 2 | . . 2 . Garrison Access 1 | . . . 1 Total Hacks 61 | . 13 26 22 Successful 43 | . 9 20 14 Failed 18 | . 4 6 8 Catastrophic 1 | . . 1 . Database Lockouts . | . . . . Manual . | . . . . Terminals 35 | . 10 13 12 Fabricators . | . . . . Repair Stations 8 | . . . 8 Recycling Units 7 | . 3 4 . Scanalyzers 9 | . . 9 . Garrison Access 2 | . . . 2 Terminal Hacks 24 | . 7 8 9 Record 14 | . 3 4 7 Robot Analysis 2 | . . 1 1 Prototype ID Bank 2 | . 1 . 1 Alert Level 2 | . 2 . . Unreport Threat 4 | . 1 3 . Fabricator Hacks . | . . . . Repair Station Hacks 4 | . . . 4 Scan Component 3 | . . . 3 Repair 1 | . . . 1 Recycling Unit Hacks 5 | . 2 3 . Report Inventory 3 | . 1 2 . Retrieve Components 2 | . 1 1 . Scanalyzer 9 | . . 9 . Insert Component 5 | . . 5 . Analyze 4 | . . 4 . Garrison Access Hacks 1 | . . . 1 Seal Access 1 | . . . 1 Unauthorized Hacks . | . . . . Terminals . | . . . . Fabricators . | . . . . Repair Stations . | . . . . Recycling Units . | . . . . Scanalyzers . | . . . . Garrison Access . | . . . . Data Cores Recovered . | . . . . Used . | . . . . Hacking Detections 13 | . 4 5 4 Full Trace Events 10 | . 3 5 2 Feedback Events . | . . . . Feedback Blocked . | . . . . Robot Schematics Acquired . | . . . . Robots Built . | . . . . Authchips . | . . . . Time . | . . . . Total Robot Build Rating . | . . . . Part Schematics Acquired 4 | . . 4 . Parts Built . | . . . . Authchips . | . . . . Time . | . . . . Total Part Build Rating . | . . . . Parts Repaired 1 | . . . 1 Time 38 | . . . 38 Parts Recycled . | . . . . Recycled Matter . | . . . . Retrieved Matter . | . . . . Retrieved Components 16 | . 6 10 . Parts Scanalyzed 4 | . . 4 . Part Schematics Acquired 4 | . . 4 . Parts Damaged . | . . . . Bothacking | -11 -10 -9 -9 ------------ Run | Yrd Mat Mat Sto Used RIF Installer . | . . . . Robots Hacked . | . . . . Non-combat . | . . . . Combat . | . . . . Robot Hacks Applied . | . . . . Relay Couplers Released . | . . . . Fabnet Peak Effective % . | . . . . Robots Rewired . | . . . . Allies Hacked . | . . . . Hacks Repelled . | . . . . Allies | -11 -10 -9 -9 -------- Run | Yrd Mat Mat Sto Total Allies 2 | . . . 2 Largest Group 2 | . . . 2 Highest-Rated Group 62 | . . . 62 Highest-Rated Ally 31 | . . . 31 Total Orders . | . . . . Ally Attacks 38 | . . . 38 Total Damage 567 | . . . 567 Kills 3 | . . . 3 Allies Corrupted . | . . . . Allies Melted . | . . . . Intel | -11 -10 -9 -9 ------- Run | Yrd Mat Mat Sto Robot Analysis Total 2 | . . 1 1 Derelict Logs Recovered . | . . . . Drone Launches . | . . . . Drone Recoveries . | . . . . Exploration | -11 -10 -9 -9 ------------- Run | Yrd Mat Mat Sto Turns Passed 4877 | 89 1651 1501 1636 Spaces Moved 2159 | 51 667 714 727 Core 11 | 10 . . 1 Treads 238 | 41 187 . 10 Legs 1910 | . 480 714 716 Wheels . | . . . . Hover . | . . . . Flight . | . . . . Fastest Speed 50 | 50 120 120 190 Average Speed 182 | 138 201 156 192 Slowest Speed 650 | 160 260 190 650 Overloaded Moves . | . . . . Propulsion Burnouts . | . . . . Robots Hopped . | . . . . Cave-ins Triggered . | . . . . Exploration Rate (%) 56 | 4 75 68 80 Regions Visited 3 Branch Regions 1 Pre-discovered Areas . | . . . . Known Exits Taken . | . . . . Unknown Exits Taken 3 | 1 1 1 . Scrap Searched . | . . . . Spaces Dug . | . . . . Terrain Destroyed 57 | . 27 27 3 Melee . | . . . . Projectile 15 | . 3 9 3 AOE 42 | . 24 18 . Terrain Rammed . | . . . . Walls Destroyed . | . . . . Machines Disabled . | . . . . Actions | -11 -10 -9 -9 --------- Run | Yrd Mat Mat Sto Total 2679 | 68 827 920 864 Wait 27 | . . . 27 Move 2156 | 50 666 713 727 Hop . | . . . . Pick Up 97 | 12 32 41 12 Fast Attach 3 | . . 1 2 Attach 48 | 5 17 20 6 Detach 6 | . 4 1 1 Swap 30 | . 2 13 15 Drop 65 | . 17 34 14 Fire 228 | 1 74 97 56 Melee . | . . . . Ram 2 | . 2 . . Kick 17 | . 13 . 4 Crush . | . . . . Escape Stasis . | . . . . Rewire . | . . . . Trap . | . . . . Miscellaneous . | . . . . Route ------- -11/Scrapyard -10/Materials (discovered 3 exits: *Mat x2 / [*Min]) -9/Materials (discovered 5 exits: [*Mat] / [*Min x2] / *Sto x2) -9/Storage History --------- Turn | Location | Event 20 | -11/Scrapyard | Discovered new exit (range 15) 90 | -11/Scrapyard | Entered Materials 309 | -10/Materials | Build established: Mutant 637 | -10/Materials | Discovered new exit (range 16) 959 | -10/Materials | Discovered new exit (range 9) 1477 | -10/Materials | Core integrity fell below 50% 1512 | -10/Materials | Lost 5 parts (1p2n2w) 1642 | -10/Materials | Discovered new exit (range 6) 1741 | -10/Materials | Entered another Materials area 1741 | -9/Materials | Evolved 2 slots: Propulsion x1, Utility x1 1751 | -9/Materials | Discovered new exit (range 15) 1768 | -9/Materials | Build established: Scavenger-Mutant 2394 | -9/Materials | Discovered new exit (range 15) 2437 | -9/Materials | Discovered new exit (range 11) 2568 | -9/Materials | Discovered new exit (range 16) 3165 | -9/Materials | Discovered new exit (range 13) 3242 | -9/Materials | Entered Storage 3493 | -9/Storage | Core integrity fell below 50% 3740 | -9/Storage | Core integrity fell below 20% 3942 | -9/Storage | Repaired Hvy. Armor Plating 4284 | -9/Storage | Build established: Mutant 4793 | -9/Storage | Met a pair of Derelict thieves 4878 | -9/Storage | Destroyed by G-34 Mercenary with Small Laser Last Messages --------------- 04826_ C-30 ARC bursts open, deploying its payload. 04826_ L-31 Rogue unfolds itself. 04826_ G-34 Mercenary unfolds itself. 04826_ I-25 Savior unfolds itself. 04826_ L-31 Rogue sneak attacks. 04830_ System corrupted: Component data lost. 04837_ L-31 Rogue destroyed. 04844_ G-34 Mercenary suffers critical hit (Burn). 04844_ G-34 Mercenary destroyed. 04847_ 7G-JLV(g) destroyed. 04851_ L-31 Rogue destroyed. 04867_ 3U-PM1(g) suffers critical hit (Burn). 04869_ G-47 Trooper destroyed. 04870_ C-30 ARC bursts open, deploying its payload. 04870_ G-47 Trooper unfolds itself. 04870_ L-31 Rogue unfolds itself. 04870_ B-36 Bruiser unfolds itself. 04870_ G-34 Mercenary unfolds itself. 04875_ Imp. Heat Sink melted. 04875_ G-47 Trooper destroyed. Map ----- +----------------------------------------------------+ | ?# """ " " #?# ## ![= | | ?# """ """ #?# ![! ## ########## | | ?###########?# #####+############## ### #????????? | | ?????????????# #???#%* #??????# #?# #????????? | | ?????????????# #???#= """#??????# ###+###??????? | | ?????????????# #?### *R"#??????# ## ######## | | ?????????????# #?# + """#??????# ## # """ "" | | ?????????????# #?# # #?????## ## # """ "" | | ?????????????# #?# #####+######### # # """ "" | | ?????????????# #?# % + # | | ????????????## ### ############### # # | | ????????????# ## # #??????## ## # | | ????????????# + """" ######### ## # | | ????????????# ## # """" + ## # | | ????????????##+###+# """" ######################## | | ????????????# %# """" #??????????????????????? | | ????????????# """# #??????????????????????? | | ????????????# """########??????????????????????# | | ????????????# """#????????????????????????###### | | ????????????# #????????????????????????# != | | ????????????# #????????????????????????#""" | | ????????????########????????????????????????#""" | | ???????????????????????????????????#####????#""" | | ???????????????????????????????????# ????# | | ????????????????????????########???# "????#""" [ | | ????????????????????????#@/ * *#???# ""???#""" | | ????????????????????????#%glb!*#???# [ """ #""" | | ????????????????????????#**%=%=#???# [# | | ????????????????????????# =g=%!#???# """ #""" | | ????????????????????????###"*"##???# """ #""" | | ?????????????????????????#T m% #???# """ ?#""" | | ?????????????????????????## [ #???? ???# | | ?????????????????????#######+#########+#########/# | | ?????????????? | | ?????????????? | | ?????????????? | | ???????????????################################### | | ?????????????????????????????????????????????????? | | ?????????????????????????????????????????????????? | | ?????????????????????????????????????????????????? | | ?????????????????????????????????????????????????? | | | | | | | | | | | | | | | | | | | +----------------------------------------------------+ Best States ------------- Heat Dissipation 28 Energy Generation 14 Energy Capacity 280 Matter Stores 300 Matter Capacity 300 Sight Range 18 Robot Scan Range 14 Terrain Scan Density 10 Armor Coverage 600 Resistance: TH 10 Evasion (%) 55 Recoil Reduction 2 Item Schematics ----------------- Rocket Launcher | -9/Materials | Scanalyzed Ion Engine | -9/Materials | Scanalyzed Aluminum Leg | -9/Materials | Scanalyzed Lgt. Armor Plating | -9/Materials | Scanalyzed Robot Schematics ------------------ None Fabricated ------------ Nothing Alien Tech Used ----------------- None Achievements -------------- Risk Taker Challenges ------------ None Game ------ Seed AntigravDefenseDrivehammer Manual? 0 Play Time 01:05:44 Cumulative 2.9 hours Start 2024.08.13 @ 17:26:43 End 2024.08.13 @ 18:36:56 Sessions 1 Manual Loads 0 Difficulty Rogue Special Mode None Game No. 4 Rogue 4 Adventurer 0 Explorer 0 Win Type - Total 0 Types 0/0/0/0/0/0/0/0/0 Lore% 2 Gallery% 4 Achievement% 7 Wizard Run 0 Options --------- Layout 2 ASCII 0 Keyboard 0 Movement Mouse Keybinds 0 Fullscreen 0 Font 20/X11 Map View 64x51 Zoom Use 0% Tactical HUD 1 Map Filters NONE Filters NONE Steam 1 RUN: daca8846-c5e3-4b3c-9004-a8a967ff4787